bitfinex-derivatives/quotes_ETHF0:USTF0_20250918
["timestamp","ask_amount","ask_price","bid_price","bid_amount"]
[1758182354310,0.98306142,4578.1,4578.0,0.4358]
[1758182354906,2.68632242,4578.1,4578.0,0.4358]
[1758182357912,2.68558179,4578.1,4578.0,0.4358]
[1758182359917,2.68558179,4578.1,4577.6,0.3152]
[1758182360115,4.26066434,4577.7,4577.6,0.3152]
[1758182360417,3.4268,4577.7,4577.6,0.7362]
[1758182360715,4.47966434,4577.7,4577.6,0.7362]
[1758182361422,4.26066434,4577.7,4577.6,0.7362]
[1758182361610,4.47966434,4577.7,4577.6,0.7362]
[1758182363211,4.47966434,4577.7,4577.6,0.3152]
[1758182365216,4.47966434,4577.7,4577.6,0.528]
[1758182367010,4.47966434,4577.7,4577.6,0.3152]
[1758182374520,4.98588782,4577.7,4577.6,0.3152]
[1758182375022,4.98588751,4577.7,4577.6,0.3152]
[1758182376624,5.22313406,4577.7,4577.6,0.3152]
[1758182378823,5.00413406,4577.7,4577.6,0.5191]
[1758182379023,5.22313406,4577.7,4577.6,0.5191]
[1758182381128,5.00413406,4577.7,4577.6,0.5191]
[1758182381621,5.22313406,4577.7,4577.6,0.5191]
[1758182383026,5.22313406,4577.7,4577.6,0.3152]
[1758182385524,5.22365994,4577.7,4577.6,0.3152]
[1758182386328,6.27652428,4577.7,4577.0,0.1251]
[1758182386534,0.7439956,4577.6,4577.5,0.4132]
[1758182387436,0.7439956,4577.6,4577.5,0.6171]
[1758182388134,0.74400583,4577.6,4577.5,0.6171]
[1758182388337,0.96300583,4577.6,4577.5,0.818]
[1758182390045,1.86345579,4577.6,4577.5,0.818]
[1758182391841,1.64445579,4577.6,4577.5,0.818]
[1758182392041,1.64445579,4577.6,4577.5,4.818]
[1758182392042,0.74400583,4577.6,4577.5,4.818]
[1758182392239,1.86345579,4577.6,4577.5,4.818]
[1758182392546,1.62567313,4577.6,4577.5,5.03646]
[1758182392737,1.86352036,4577.6,4577.5,4.818]
[1758182392936,1.62567313,4577.6,4577.5,4.818]
[1758182393741,0.72522317,4577.6,4577.5,4.818]
[1758182393941,1.62567313,4577.6,4577.5,4.818]
[1758182395347,1.62567313,4577.6,4577.5,0.818]
[1758182395748,1.40667313,4577.6,4577.5,0.818]
[1758182395948,1.62567313,4577.6,4577.5,0.818]
[1758182396844,1.86349796,4577.6,4577.5,0.818]
[1758182397047,1.62567313,4577.6,4577.5,0.818]
[1758182397246,1.85548292,4577.6,4577.5,0.818]
[1758182397447,1.62567313,4577.6,4577.5,0.818]
[1758182400045,1.11944996,4577.6,4577.5,0.818]
[1758182400348,0.219,4577.6,4577.5,0.818]
[1758182400546,0.219,4577.6,4577.5,0.5268]
[1758182400849,0.72596264,4577.6,4577.5,0.5268]
[1758182401048,0.50696264,4577.6,4577.5,0.818]
[1758182401439,0.72596264,4577.6,4577.5,0.818]
[1758182402547,0.50696264,4577.6,4577.5,0.818]
[1758182402850,31.468,4578.8,4578.1,0.7294]
[1758182402851,3.2078,4578.2,4578.1,0.7294]
[1758182403146,3.92015233,4578.2,4578.1,0.7294]
[1758182403355,4.34745233,4578.2,4578.1,0.7294]
[1758182403549,4.88890893,4578.2,4578.1,0.5301]
[1758182403748,4.88890893,4578.2,4577.6,0.3175]
[1758182404057,3.9328,4577.7,4577.6,0.3175]
[1758182404257,4.44015233,4577.7,4577.6,0.3175]
[1758182405253,4.65915233,4577.7,4577.6,0.3175]
[1758182405454,4.88894706,4577.7,4577.6,0.3175]
[1758182405645,0.39309,4577.1,4577.0,0.1181]
[1758182405850,0.39309,4577.1,4577.0,0.514]
[1758182405851,1.12439,4577.1,4577.0,0.514]
[1758182406045,1.32959,4577.1,4577.0,0.3959]
[1758182406251,1.32959,4577.1,4577.0,0.20071]
[1758182407253,4.53739,4577.1,4577.0,1e-05]
[1758182407757,0.39317,4576.2,4576.1,3.2078]
[1758182407949,0.71077,4576.2,4576.1,3.2078]
[1758182408254,0.71077,4576.2,4576.1,3.42632]
[1758182408852,0.3122,4576.0,4575.6,3.2078]
[1758182409149,0.1175,4576.0,4575.6,3.2078]
[1758182409356,0.39321,4575.7,4575.6,3.2078]
[1758182409653,0.71081,4575.7,4575.6,3.2078]
[1758182410954,0.90551,4575.7,4575.6,3.2078]
[1758182412657,0.90551,4575.7,4575.6,2.727]
[1758182412863,0.7175,4575.4,4575.3,0.43712503]
[1758182413160,0.9365,4575.4,4575.3,0.43712503]
[1758182419068,0.9375,4575.4,4575.3,0.43712503]
[1758182420766,4.1453,4575.4,4575.3,0.43712503]
[1758182421863,3.9253,4575.4,4575.3,0.43712503]
[1758182422064,4.1453,4575.4,4575.3,0.43712503]
[1758182423269,3.9253,4575.4,4575.3,0.43712503]
[1758182423464,0.3176,4575.4,4575.3,0.43712503]
[1758182426070,0.3176,4575.8,4575.3,4.43712503]
[1758182426370,0.3176,4575.8,4575.3,0.65568503]
[1758182426567,0.3176,4575.8,4575.3,0.87568503]
[1758182426764,0.3176,4575.8,4575.3,4.65712503]
[1758182427066,0.3176,4575.9,4575.3,4.87567503]
[1758182427268,0.1947,4575.9,4575.3,4.87567503]
[1758182427468,0.3176,4575.9,4575.3,4.87567503]
[1758182427675,0.3176,4575.9,4575.3,4.65712503]
[1758182428174,0.3122,4576.0,4575.3,4.65712503]
[1758182428375,0.3176,4575.9,4575.3,4.65712503]
[1758182429471,0.1175,4576.0,4575.3,4.65712503]
[1758182429666,0.3176,4575.9,4575.3,4.65712503]
[1758182429874,0.3122,4576.0,4575.3,4.65712503]
[1758182431479,0.3176,4575.9,4575.3,4.65712503]
[1758182431680,0.3122,4576.0,4575.3,4.65712503]
[1758182432081,0.3176,4575.9,4575.3,4.65712503]
[1758182432281,0.1947,4575.8,4575.3,4.65712503]
[1758182432482,0.1947,4575.7,4575.3,0.65712503]
[1758182432682,0.1175,4575.5,4575.3,0.65712503]
[1758182432883,0.3176,4575.4,4575.3,0.65712503]
[1758182445495,0.1175,4576.0,4575.3,4.65712503]
[1758182445691,0.4071,4576.0,4575.9,3.2078]
[1758182445994,0.4071,4576.0,4575.9,3.4278]
[1758182452298,0.4071,4576.0,4575.9,4.99682392]
[1758182453408,0.2896,4576.0,4575.9,4.99682392]
[1758182453610,0.2896,4576.7,4576.4,0.39315]
[1758182453811,3.3335,4577.5,4576.6,4.77784712]
[1758182454111,3.3335,4577.5,4576.9,1.57004712]
[1758182454308,3.3335,4577.5,4576.9,1.79004712]
[1758182454510,3.3335,4577.5,4576.9,0.22]
[1758182454811,0.1257,4577.5,4576.9,0.22]
[1758182455815,0.4071,4577.0,4576.9,0.22]
[1758182456813,0.2896,4577.0,4576.9,0.22]
[1758182459515,0.4153,4577.0,4576.9,0.22]
[1758182461517,0.2896,4577.4,4576.9,4.22]
[1758182461815,0.2896,4577.4,4577.3,3.2078]
[1758182462018,0.2896,4577.4,4577.3,3.4278]
[1758182462817,0.4883,4577.4,4577.3,3.4278]
[1758182463119,0.6967,4577.4,4577.3,3.4278]
[1758182471919,0.6967,4577.4,4577.3,0.22]
[1758182476628,0.6967,4577.4,4577.3,3.4278]
[1758182481921,0.2896,4577.4,4577.3,3.4278]
[1758182482320,0.1257,4578.0,4577.3,3.4278]
[1758182482526,0.4365,4578.0,4577.9,3.2078]
[1758182482830,0.6338,4578.0,4577.9,3.4278]
[1758182484336,0.8327,4578.0,4577.9,3.4278]
[1758182487728,0.1257,4578.0,4577.9,3.4278]
[1758182488032,0.323,4578.5,4577.9,3.4278]
[1758182488336,0.1973,4578.4,4577.9,3.4278]
[1758182488531,0.1257,4578.5,4577.9,3.4278]
[1758182488532,0.323,4578.5,4577.9,3.4278]
[1758182488838,0.3108,4578.3,4577.9,3.4278]
[1758182489028,0.1973,4578.4,4577.9,3.82082]
[1758182489631,0.323,4578.5,4577.9,3.4278]
[1758182489831,0.3108,4578.3,4577.9,3.4278]
[1758182490031,0.3108,4578.4,4577.9,3.4278]
[1758182490232,0.6248,4578.0,4577.9,3.4278]
[1758182492237,0.4275,4578.0,4577.9,3.4278]
[1758182495640,0.6248,4578.0,4577.9,3.4278]
[1758182498940,0.4275,4578.0,4577.9,3.4278]
[1758182499135,0.1257,4578.5,4577.9,7.64624]
[1758182499337,0.1167,4579.5,4578.4,3.2078]
[1758182499338,0.2952,4578.9,4578.4,3.2078]
[1758182499536,0.1167,4579.0,4578.5,1.78758535]
[1758182499736,0.3144,4579.0,4578.5,1.78758535]
[1758182499936,0.2952,4578.9,4578.6,1.56858535]
[1758182500133,0.2952,4578.9,4578.8,3.2078]
[1758182500537,0.1167,4579.0,4578.8,3.2078]
[1758182500737,0.1167,4579.5,4578.9,0.219]
[1758182500937,0.2952,4579.9,4579.4,3.2078]
[1758182501136,0.2952,4579.9,4579.5,0.22]
[1758182501339,0.4929,4579.9,4579.5,0.22]
[1758182501737,0.1178,4580.0,4579.5,0.22]
[1758182501938,0.6107,4580.0,4579.9,3.2078]
[1758182502139,0.6107,4580.0,4579.9,3.4278]
[1758182504737,0.818,4580.0,4579.9,0.22]
[1758182510549,0.818,4579.5,4579.4,3.4268]
[1758182514049,0.818,4579.5,4579.4,3.2078]
[1758182514746,0.818,4579.5,4579.3,0.219]
[1758182520651,0.6107,4579.5,4579.3,0.219]
[1758182520955,0.2952,4579.4,4579.3,0.219]
[1758182521157,0.2952,4579.4,4579.3,3.4268]
[1758182521651,0.4929,4579.4,4579.3,3.4268]
[1758182522857,0.2952,4579.4,4579.3,3.4268]
[1758182523752,0.5075,4579.4,4579.3,3.4268]
[1758182527160,0.7137,4579.4,4579.3,3.4268]
[1758182528659,0.7137,4579.4,4579.3,4.99538535]
[1758182530661,0.7137,4579.4,4579.3,3.4268]
[1758182542272,0.2952,4579.4,4579.3,3.4268]
[1758182542571,0.2924,4579.9,4579.3,3.4268]
[1758182543072,0.3309,4580.0,4579.3,3.4268]
[1758182543269,0.2924,4579.9,4579.3,3.4268]
[1758182544071,0.3309,4580.0,4579.3,3.4268]
[1758182544369,0.2924,4579.9,4579.3,3.4268]
[1758182544575,0.3309,4580.0,4579.3,3.4268]
[1758182544870,0.2924,4579.9,4579.3,3.4268]
[1758182545067,0.5055,4579.8,4579.3,3.4268]
[1758182545269,0.2924,4579.9,4579.3,3.4268]
[1758182545769,0.2131,4579.9,4579.3,3.4268]
[1758182545962,0.2924,4579.9,4579.3,3.4268]
[1758182546160,0.2924,4579.8,4579.3,3.4268]
[1758182546363,0.2924,4579.7,4579.3,3.4268]
[1758182546566,0.2924,4579.9,4579.3,3.4268]
[1758182547175,0.2924,4579.7,4579.3,3.4268]
[1758182547370,0.2924,4579.9,4579.3,3.4268]
[1758182548074,0.2131,4579.8,4579.3,3.4268]
[1758182548271,0.3309,4580.0,4579.3,3.4268]
[1758182548468,0.2131,4579.9,4579.3,3.4268]
[1758182548669,0.2924,4579.9,4579.3,3.4268]
[1758182548868,0.2131,4579.9,4579.3,3.4268]
[1758182549070,0.3309,4580.0,4579.3,3.4268]
[1758182549272,0.2924,4579.9,4579.3,3.4268]
[1758182549777,0.1178,4580.0,4579.3,3.4268]
[1758182549978,0.2131,4579.9,4579.3,3.4268]
[1758182550177,0.2924,4579.9,4579.3,3.4268]
[1758182550776,0.2131,4579.9,4579.3,3.4268]
[1758182550976,0.2924,4579.9,4579.3,3.4268]
[1758182551279,0.2924,4581.4,4579.8,3.2078]
[1758182551473,0.2924,4581.2,4581.1,3.2078]
[1758182551678,0.2924,4581.2,4581.1,3.4278]
[1758182552275,0.2924,4581.4,4581.1,3.82055]
[1758182552985,0.2924,4581.4,4581.2,0.39274]
[1758182553174,0.2924,4581.4,4581.3,0.22]
[1758182554186,0.2924,4581.4,4581.3,0.61274]
[1758182554387,0.2924,4581.4,4581.3,0.22]
[1758182557190,0.3108,4581.9,4581.4,0.39273]
[1758182557386,0.2061,4581.9,4581.6,3.2078]
[1758182557588,0.3108,4581.8,4581.7,0.22]
[1758182558792,0.5169,4581.8,4581.7,0.22]
[1758182560589,0.7221,4581.8,4581.7,0.22]
[1758182565091,0.7221,4581.8,4581.6,3.2078]
[1758182565296,0.3108,4581.7,4581.6,3.2078]
[1758182565489,0.7221,4581.7,4581.6,3.4278]
[1758182574203,0.7221,4581.7,4581.5,0.0218]
[1758182574398,0.7221,4581.7,4581.6,0.22]
[1758182574903,0.94036,4581.7,4581.6,0.22]
[1758182575204,0.94036,4581.7,4581.5,0.0218]
[1758182575901,0.7221,4581.7,4581.5,0.0218]
[1758182584400,0.5145,4581.9,4581.5,0.0218]
[1758182584710,0.5145,4581.9,4581.5,0.2418]
[1758182585307,0.5145,4581.9,4581.5,0.22]
[1758182586609,0.5145,4581.9,4581.6,3.2078]
[1758182586910,0.2947,4581.7,4581.6,3.2078]
[1758182588009,0.1175,4582.0,4581.6,4.76798377]
[1758182588207,0.1175,4582.5,4581.8,1.56018377]
[1758182588409,0.4935,4582.4,4581.8,1.56018377]
[1758182588606,0.4935,4582.3,4581.8,1.56018377]
[1758182588801,0.2947,4582.2,4581.8,1.56018377]
[1758182589006,0.1158,4582.0,4581.9,0.0218]
[1758182589313,0.4105,4582.0,4581.9,0.0218]
[1758182590502,0.6093,4582.0,4581.9,0.0218]
[1758182590807,0.8083,4582.0,4581.9,0.2418]
[1758182598113,0.8083,4582.0,4581.9,0.22]
[1758182604217,0.8083,4582.0,4581.7,0.0218]
[1758182604415,0.8083,4582.0,4581.8,0.22]
[1758182604616,0.8083,4582.0,4581.7,0.2418]
[1758182604817,1.02655,4582.0,4581.7,0.2418]
[1758182605514,0.8083,4582.0,4581.7,0.2418]
[1758182609714,0.8083,4582.0,4581.7,0.0218]
[1758182624625,0.7316,4581.4,4581.2,1.56018377]
[1758182624832,0.4188,4581.2,4581.1,1.78018377]
[1758182625131,0.7316,4581.2,4581.1,1.78018377]
[1758182625330,0.7316,4581.2,4581.1,0.22]
[1758182627831,0.7316,4581.2,4581.0,3.2078]
[1758182628039,0.4188,4580.6,4580.5,3.2078]
[1758182628232,0.7316,4580.6,4580.5,3.4278]
[1758182628434,0.7316,4580.1,4580.0,3.4199]
[1758182628634,0.7316,4580.1,4580.0,3.6399]
[1758182629732,0.7316,4580.1,4580.0,3.4278]
[1758182630141,0.7316,4580.1,4580.0,3.2078]
[1758182633039,0.7316,4580.1,4579.8,0.22]
[1758182633241,0.7316,4579.9,4579.8,0.22]
[1758182635547,0.4188,4579.9,4579.8,0.2121]
[1758182635747,0.7316,4579.9,4579.8,0.2121]
[1758182636148,0.7316,4579.9,4579.5,3.2078]
[1758182636349,0.4188,4579.6,4579.5,3.2078]
[1758182636542,0.7316,4579.6,4579.5,3.2078]
[1758182636942,0.7316,4579.6,4579.5,3.4199]
[1758182637446,0.7316,4579.6,4579.5,3.6283]
[1758182638644,0.7316,4579.6,4579.5,3.8626]
[1758182639544,0.5246,4579.6,4579.5,3.8626]
[1758182639738,0.7272,4579.6,4579.5,3.4199]
[1758182639938,0.3195,4579.5,4579.4,0.22]
[1758182640145,0.8163,4579.5,4579.4,0.22]
[1758182641344,0.2942,4579.4,4579.3,0.2085]
[1758182641543,0.2942,4579.4,4579.3,0.4116]
[1758182641544,0.6929,4579.4,4579.3,0.4116]
[1758182642141,0.2942,4579.3,4579.0,3.4496]
[1758182642346,0.3987,4579.1,4579.0,3.4496]
[1758182642553,0.3987,4579.1,4579.0,3.4278]
[1758182642554,0.6929,4579.1,4579.0,3.4278]
[1758182644043,0.1234,4579.5,4578.4,3.6194]
[1758182644044,0.8163,4578.5,4578.4,3.6194]
[1758182644249,0.8163,4578.5,4578.4,3.8394]
[1758182644443,0.6137,4578.5,4578.4,4.0737]
[1758182645250,0.8163,4578.5,4578.4,3.8394]
[1758182646259,0.6137,4578.5,4578.4,4.0736]
[1758182646551,0.4176,4578.5,4578.4,4.0736]
[1758182647448,0.2942,4578.5,4578.4,4.0736]
[1758182648853,0.5062,4578.5,4578.4,4.0736]
[1758182649248,0.1234,4579.0,4578.7,0.39296]
[1758182649448,0.6377,4579.0,4578.9,0.4126]
[1758182649748,0.8488,4579.0,4578.9,0.4126]
[1758182652054,0.8488,4579.0,4578.9,0.2083]
[1758182652249,0.7254,4578.7,4578.6,0.22]
[1758182653857,0.7254,4578.7,4578.6,0.4283]
[1758182657363,0.7254,4578.7,4578.6,0.22]
[1758182661266,0.1158,4578.5,4578.0,0.0218]
[1758182661567,0.7254,4578.1,4578.0,0.2418]
[1758182661864,0.7254,4578.1,4578.0,0.22]
[1758182662064,0.7254,4578.1,4578.0,0.4283]
[1758182662463,0.7254,4578.1,4578.0,0.22]
[1758182664060,0.8412,4577.5,4577.4,3.2078]
[1758182664267,0.8412,4577.5,4577.4,3.85454]
[1758182664464,0.8412,4577.5,4577.4,4.05884]
[1758182664968,0.8412,4577.5,4577.4,3.8546]
[1758182665164,0.8412,4577.5,4577.4,4.0746]
[1758182665770,0.8412,4577.5,4577.4,3.8546]
[1758182666071,0.8412,4577.5,4577.4,4.0746]
[1758182666368,0.8412,4577.5,4577.4,3.8404]
[1758182666568,0.8412,4577.5,4577.4,3.6361]
[1758182667068,0.8412,4577.5,4577.4,3.8404]
[1758182667273,0.8412,4577.5,4577.4,4.0746]
[1758182667466,0.8412,4577.5,4577.4,3.8404]
[1758182668470,0.8412,4577.5,4577.4,4.23347]
[1758182668775,0.8412,4577.5,4577.4,4.46767]
[1758182669272,0.8412,4577.5,4577.4,4.0746]
[1758182669773,0.8412,4577.5,4577.4,3.8404]
[1758182669967,0.8412,4577.5,4577.4,4.0746]
[1758182670974,0.3023,4577.5,4577.4,4.0746]
[1758182671370,0.6301,4577.5,4577.4,4.0746]
[1758182673478,0.8412,4577.5,4577.4,3.8404]
[1758182679682,0.3023,4577.5,4577.4,4.0741]
[1758182681780,0.5159,4578.0,4577.9,0.4043]
[1758182682170,0.8229,4578.0,4577.9,0.4043]
[1758182683380,0.8229,4578.0,4577.6,0.22]
[1758182683674,0.8229,4578.0,4577.4,3.2078]
[1758182683675,0.7071,4577.1,4577.0,0.4043]
[1758182683871,0.7071,4577.1,4577.0,0.6243]
[1758182684071,0.5087,4577.1,4577.0,1.25111]
[1758182684280,0.5087,4577.1,4577.0,0.858]
[1758182684977,0.7071,4577.1,4577.0,0.6243]
[1758182686080,0.7071,4577.1,4577.0,0.4043]
[1758182686384,0.7071,4577.1,4577.0,0.6243]
[1758182686784,0.7071,4577.1,4577.0,0.4192]
[1758182687381,0.4001,4576.6,4576.5,0.59235]
[1758182687579,0.7071,4576.6,4576.5,0.4192]
[1758182688181,0.7071,4576.6,4576.5,0.22]
[1758182689182,0.7071,4576.6,4576.5,0.81235]
[1758182689984,0.7071,4576.6,4576.5,0.1992]
[1758182690882,0.7071,4576.6,4576.5,0.59235]
[1758182691081,0.7071,4576.6,4576.5,1.03115]
[1758182692388,0.7071,4576.6,4576.5,1.25115]
[1758182692881,0.307,4576.6,4576.5,1.25115]
[1758182694791,0.307,4576.6,4576.5,0.858]
[1758182695091,0.5087,4576.6,4576.5,0.858]
[1758182695789,3.2078,4577.4,4577.2,0.4043]
[1758182695790,0.5087,4577.3,4577.2,0.4043]
[1758182695989,0.307,4577.3,4577.2,0.858]
[1758182697188,0.1231,4577.5,4577.3,0.2337]
[1758182697189,0.307,4577.5,4577.3,0.2337]
[1758182697386,0.307,4577.9,4577.8,0.4043]
[1758182697585,0.526,4578.5,4578.4,0.1992]
[1758182697792,0.8302,4578.5,4578.4,0.1992]
[1758182698189,0.8302,4578.5,4578.0,0.157]
[1758182698382,0.526,4578.5,4578.4,0.2089]
[1758182698588,0.6217,4578.5,4578.4,0.6501]
[1758182699092,0.3042,4578.5,4578.4,0.6501]
[1758182699487,0.3042,4578.5,4578.4,3.8579]
[1758182699893,0.1231,4579.0,4578.9,0.416]
[1758182699894,0.3244,4579.0,4578.9,0.416]
[1758182700488,0.8371,4579.0,4578.9,0.416]
[1758182702292,0.8371,4579.0,4578.9,0.2089]
[1758182702503,0.8371,4579.0,4578.5,0.22]
[1758182703505,0.5329,4579.0,4578.9,0.2089]
[1758182703794,0.5329,4579.0,4578.9,0.416]
[1758182704195,0.8371,4579.0,4578.9,0.416]
[1758182705096,0.6286,4579.0,4578.9,3.8579]
[1758182705297,3.3309,4579.5,4579.3,0.2047]
[1758182705298,0.5159,4579.4,4579.3,0.2047]
[1758182705495,0.7287,4579.4,4579.3,0.4132]
[1758182706396,0.319,4579.4,4579.3,0.6472]
[1758182707096,0.5159,4579.4,4579.3,0.6472]
[1758182708497,0.5159,4579.4,4579.3,0.8672]
[1758182709197,0.319,4579.4,4579.3,0.8672]
[1758182710291,0.7287,4579.4,4579.3,0.6332]
[1758182711700,0.319,4579.4,4579.3,0.8672]
[1758182712004,0.319,4579.9,4579.8,0.6472]
[1758182712302,0.319,4579.9,4579.8,0.8672]
[1758182712503,0.5159,4579.9,4579.8,0.8672]
[1758182712693,0.7287,4579.9,4579.8,0.22]
[1758182712895,0.319,4579.8,4579.7,3.2078]
[1758182713097,0.7287,4579.8,4579.6,0.22]
[1758182713500,0.5348,4579.5,4579.4,0.22]
[1758182713697,0.5348,4579.5,4579.2,3.2078]
[1758182713902,0.7287,4579.4,4579.3,0.22]
[1758182716001,0.7287,4579.4,4579.3,0.4247]
[1758182721808,0.4097,4579.2,4579.1,0.0218]
[1758182722005,0.7287,4579.2,4579.1,0.0218]
[1758182722509,0.7287,4579.2,4579.1,0.435]
[1758182722911,0.7287,4579.2,4579.1,0.669]
[1758182723507,0.7287,4579.2,4579.1,0.435]
[1758182725516,0.319,4579.4,4579.1,0.435]
[1758182725723,0.5159,4579.9,4579.8,0.6472]
[1758182726216,0.5159,4579.9,4579.8,0.4132]
[1758182726522,0.7287,4579.9,4579.8,0.4132]
[1758182726711,0.7287,4579.9,4579.8,3.621]
[1758182726918,0.7287,4579.9,4579.8,3.855]
[1758182727114,0.7287,4579.9,4579.8,3.621]
[1758182728811,0.7287,4579.9,4579.8,3.855]
[1758182729311,0.7287,4579.9,4579.8,3.621]
[1758182729716,0.7287,4579.9,4579.8,3.2078]
[1758182730026,0.7287,4579.9,4579.6,0.22]
[1758182731128,0.4097,4579.6,4579.5,0.22]
[1758182731423,0.7287,4579.3,4579.2,3.4125]
[1758182731625,0.7287,4579.3,4579.2,3.6325]
[1758182732323,0.7287,4579.3,4579.2,0.22]
[1758182736824,0.7287,4579.3,4579.1,0.0218]
[1758182737429,0.7287,4579.3,4579.2,0.1994]
[1758182737631,0.7287,4579.3,4579.1,0.0218]
[1758182738831,0.7287,4579.3,4578.8,0.22]
[1758182739028,0.2009,4578.9,4578.8,0.22]
[1758182739231,0.7112,4578.9,4578.8,0.4194]
[1758182741334,0.7112,4578.9,4578.8,0.22]
[1758182742242,0.4038,4578.9,4578.8,0.22]
[1758182742426,0.4038,4578.9,4578.7,3.2078]
[1758182742927,0.7112,4578.8,4578.7,3.2078]
[1758182744033,0.7112,4578.8,4578.6,0.0218]
[1758182746333,0.2184,4578.7,4577.9,3.2078]
[1758182746538,0.8268,4578.0,4577.9,3.2078]
[1758182747434,0.8268,4578.0,4577.9,3.4072]
[1758182747830,0.8268,4578.0,4577.9,3.6078]
[1758182748030,0.5083,4578.0,4577.9,3.6078]
[1758182748235,0.8268,4578.0,4577.9,3.6078]
[1758182748937,0.8268,4578.0,4577.9,3.8638]
[1758182750443,0.8268,4578.0,4577.9,3.6078]
[1758182753238,0.8268,4578.0,4577.9,3.8638]
[1758182753638,0.1156,4578.5,4577.9,3.8638]
[1758182753834,0.5083,4578.4,4578.3,0.4]
[1758182754040,0.5083,4578.4,4578.3,0.656]
[1758182755141,0.7112,4578.4,4578.3,0.4]
[1758182758648,0.7112,4578.4,4578.3,0.656]
[1758182759342,3.2078,4578.9,4578.4,0.39299]
[1758182759548,0.5032,4578.8,4578.7,0.6604]
[1758182761150,0.3096,4578.8,4578.7,3.8682]
[1758182761351,0.3096,4579.4,4579.3,0.6604]
[1758182761550,3.7193,4580.0,4579.9,0.2097]
[1758182761952,3.7193,4580.0,4579.4,0.256]
[1758182762149,0.1936,4579.5,4579.4,0.6604]
[1758182762354,3.3234,4580.0,4579.4,0.4044]
[1758182762549,0.8211,4580.0,4579.9,0.2097]
[1758182763450,0.3096,4580.0,4579.9,0.6604]
[1758182768653,0.1188,4581.0,4580.7,0.6607]
[1758182768856,0.3268,4581.0,4580.9,0.6607]
[1758182769155,0.8304,4581.5,4581.4,0.2078]
[1758182770553,0.4184,4581.3,4581.2,3.4156]
[1758182770854,0.7116,4581.3,4581.2,3.4156]
[1758182771656,0.7116,4581.3,4581.2,3.6127]
[1758182772643,0.7116,4581.3,4581.2,3.4156]
[1758182774750,0.7116,4581.3,4581.2,3.2078]
[1758182782367,0.7116,4581.3,4581.2,3.6127]
[1758182782767,0.7116,4581.3,4581.2,3.8685]
[1758182783569,0.7116,4581.3,4581.2,3.6127]
[1758182783767,0.7116,4581.3,4581.2,3.2078]
[1758182784164,0.4184,4580.9,4580.8,0.4278]
[1758182784369,0.7116,4580.9,4580.8,0.4278]
[1758182784764,0.7116,4580.9,4580.8,0.6249]
[1758182784968,0.7116,4580.9,4580.8,0.8807]
[1758182788573,0.7116,4580.9,4580.8,0.6249]
[1758182789373,0.7116,4580.9,4580.8,0.8807]
[1758182790878,0.7116,4580.9,4580.8,0.6249]
[1758182797582,0.7116,4580.9,4580.8,0.4278]
[1758182799185,0.7116,4580.9,4580.8,0.6267]
[1758182799386,0.2932,4580.9,4580.8,0.8824]
[1758182799690,0.313,4581.4,4581.3,0.6673]
[1758182800190,0.5229,4581.4,4581.3,0.6673]
[1758182802192,0.5229,4581.4,4581.3,1.06004]
[1758182802587,0.5229,4581.4,4581.3,0.6673]
[1758182802790,0.735,4581.4,4581.3,0.4116]
[1758182803991,0.1176,4581.0,4580.9,0.0218]
[1758182804193,0.1176,4580.5,4580.1,3.2078]
[1758182804388,0.221,4580.4,4579.5,3.4853]
[1758182804688,0.735,4579.6,4579.5,3.6194]
[1758182804889,0.422,4579.4,4579.3,0.221]
[1758182805094,0.735,4579.4,4579.3,0.221]
[1758182805390,0.735,4579.4,4579.3,0.4337]
[1758182805593,0.735,4579.4,4579.0,3.2078]
[1758182805790,0.422,4579.1,4579.0,3.2078]
[1758182805988,0.735,4579.1,4579.0,3.4205]
[1758182806185,0.735,4579.1,4579.0,0.4116]
[1758182808997,0.735,4579.1,4579.0,0.2127]
[1758182809796,0.1176,4579.0,4578.5,0.221]
[1758182809997,0.5229,4578.6,4578.5,0.6326]
[1758182810195,0.5229,4578.6,4578.5,0.9101]
[1758182810797,0.8526,4578.5,4578.2,0.0218]
[1758182811194,0.3275,4578.0,4577.9,3.8404]
[1758182811499,0.6405,4578.0,4577.9,3.8404]
[1758182811698,0.313,4578.0,4577.9,4.1179]
[1758182812001,0.735,4578.9,4578.8,0.4116]
[1758182812197,0.95339,4578.9,4578.8,0.4116]
[1758182812497,0.735,4578.9,4578.8,0.6891]
[1758182813299,0.735,4578.9,4578.8,0.4116]
[1758182813597,0.313,4579.4,4578.9,0.2775]
[1758182813795,0.735,4579.9,4579.8,0.2127]
[1758182814391,0.735,4579.9,4579.8,0.4116]
[1758182815097,0.735,4579.9,4579.8,0.2127]
[1758182815304,0.735,4579.9,4579.6,0.221]
[1758182819808,0.735,4579.9,4579.8,0.1985]
[1758182824915,0.735,4579.9,4579.6,0.221]
[1758182825616,0.6928,4579.2,4579.1,0.4323]
[1758182827218,0.6928,4579.2,4579.1,0.221]
[1758182828015,0.6928,4579.2,4579.1,0.4323]
[1758182829422,0.6928,4579.2,4579.1,0.221]
[1758182830719,0.1175,4579.0,4578.6,0.221]
[1758182830925,0.6928,4578.6,4578.5,3.4288]
[1758182831123,0.6928,4578.6,4578.5,0.221]
[1758182832619,0.6928,4578.6,4578.0,3.2296]